bitfinex-derivatives/quotes_BTCF0:USTF0_20250506
["timestamp","ask_amount","ask_price","bid_price","bid_amount"]
[1746552400865,0.6020528,94678.0,94677.0,0.00158433]
[1746552401055,0.6332528,94678.0,94677.0,0.00158433]
[1746552401257,0.8112528,94678.0,94677.0,0.00158433]
[1746552404066,0.8112528,94678.0,94677.0,0.21283943]
[1746552404067,0.4554128,94678.0,94677.0,0.21283943]
[1746552404962,0.4554128,94678.0,94677.0,0.27723943]
[1746552410665,0.178,94678.0,94677.0,0.27723943]
[1746552410870,0.178,94678.0,94677.0,0.31723943]
[1746552411266,0.3892528,94678.0,94677.0,0.31723943]
[1746552411468,0.178,94678.0,94677.0,0.31723943]
[1746552411974,0.3892528,94678.0,94677.0,0.31723943]
[1746552413772,0.178,94678.0,94677.0,0.27723943]
[1746552417678,0.178,94678.0,94677.0,0.43598255]
[1746552418081,0.178,94678.0,94677.0,0.79678255]
[1746552418279,0.3,94680.0,94679.0,0.2112506]
[1746552418479,0.00126426,94680.0,94679.0,0.6885506]
[1746552418680,0.5719919,94708.0,94707.0,0.2111881]
[1746552418879,0.6909484,94708.0,94707.0,0.2111881]
[1746552419181,0.60496,94708.0,94707.0,0.2111881]
[1746552419378,0.4553459,94708.0,94707.0,0.2111881]
[1746552419570,0.24416,94708.0,94707.0,0.2111881]
[1746552419978,0.4553459,94708.0,94707.0,0.2111881]
[1746552420483,0.4553459,94708.0,94707.0,0.2437881]
[1746552421482,0.4583459,94708.0,94707.0,0.2437881]
[1746552422284,0.4583459,94708.0,94707.0,0.2739881]
[1746552422983,0.181,94708.0,94707.0,0.2739881]
[1746552423585,0.181,94708.0,94707.0,0.3063881]
[1746552425087,0.2118,94708.0,94707.0,0.3063881]
[1746552427588,0.4229859,94708.0,94707.0,0.3063881]
[1746552429683,0.2118,94708.0,94707.0,0.3063881]
[1746552430078,0.4229859,94708.0,94707.0,0.3063881]
[1746552431879,0.4229859,94708.0,94707.0,0.0324]
[1746552432078,0.2111881,94707.0,94706.0,0.5719904]
[1746552432282,0.2432881,94707.0,94706.0,0.5719904]
[1746552432678,0.0321,94707.0,94706.0,0.5719904]
[1746552433085,0.4212881,94707.0,94706.0,0.5719904]
[1746552433285,0.4222881,94707.0,94706.0,0.6033904]
[1746552433984,0.2111,94707.0,94706.0,0.6033904]
[1746552434381,0.4222881,94707.0,94706.0,0.6033904]
[1746552434784,0.179,94707.0,94706.0,0.6033904]
[1746552435482,0.2091,94707.0,94706.0,0.6033904]
[1746552436189,0.4202881,94707.0,94706.0,0.6033904]
[1746552437589,0.2091,94707.0,94706.0,0.6033904]
[1746552446086,0.179,94707.0,94706.0,0.6033904]
[1746552447391,0.001,94716.0,94715.0,0.2111703]
[1746552447693,0.001,94716.0,94715.0,0.6580103]
[1746552447896,0.001,94716.0,94715.0,2.2967502]
[1746552448091,0.179,94716.0,94715.0,2.3270502]
[1746552448691,0.179,94716.0,94715.0,0.8270502]
[1746552448882,0.182,94716.0,94715.0,0.7610102]
[1746552449087,0.182,94716.0,94715.0,0.8270502]
[1746552449397,0.179,94716.0,94715.0,0.8270502]
[1746552450591,0.179,94716.0,94715.0,0.8602502]
[1746552451093,0.179,94716.0,94715.0,0.7942102]
[1746552451396,0.3901681,94716.0,94715.0,0.7610102]
[1746552451593,0.179,94716.0,94715.0,0.7610102]
[1746552451898,0.3901681,94716.0,94715.0,0.7610102]
[1746552452087,0.4213681,94716.0,94715.0,0.7610102]
[1746552452594,0.179,94716.0,94715.0,0.7610102]
[1746552452794,0.179,94716.0,94715.0,0.8310102]
[1746552453096,0.0015,94730.0,94729.0,0.2111391]
[1746552453297,0.06754,94730.0,94729.0,0.2111391]
[1746552453494,0.0015,94730.0,94729.0,0.37008742]
[1746552453793,0.0015,94730.0,94729.0,0.47046819]
[1746552453989,0.0015,94730.0,94729.0,0.88776819]
[1746552454186,0.1795,94730.0,94729.0,1.15333218]
[1746552454606,0.140755,94730.0,94729.0,1.02647218]
[1746552454800,0.143755,94730.0,94729.0,2.57117218]
[1746552455698,0.143755,94730.0,94729.0,2.59117218]
[1746552455897,0.142755,94730.0,94729.0,2.59117218]
[1746552457898,0.140755,94730.0,94729.0,2.59117218]
[1746552458099,0.140755,94730.0,94729.0,2.59217218]
[1746552462303,0.140755,94730.0,94729.0,2.48660819]
[1746552464301,0.140755,94730.0,94729.0,2.48760819]
[1746552467704,0.140755,94730.0,94729.0,2.59317218]
[1746552470097,0.140755,94730.0,94729.0,2.48760819]
[1746552472500,0.140755,94730.0,94729.0,2.46760819]
[1746552473402,0.140755,94730.0,94729.0,2.36976819]
[1746552473605,0.140755,94730.0,94729.0,1.98560819]
[1746552473909,0.140755,94730.0,94729.0,0.41956819]
[1746552474104,0.235755,94730.0,94729.0,0.48552819]
[1746552481203,0.235755,94730.0,94729.0,0.51672819]
[1746552482113,0.171055,94730.0,94729.0,0.51672819]
[1746552482309,0.171055,94730.0,94729.0,0.52672819]
[1746552483320,0.140755,94730.0,94729.0,0.52672819]
[1746552485813,0.140755,94730.0,94729.0,0.94402819]
[1746552488322,0.140755,94730.0,94729.0,0.90282819]
[1746552488522,0.140755,94730.0,94729.0,0.87192819]
[1746552488817,0.140755,94730.0,94729.0,0.48472819]
[1746552489413,0.172755,94730.0,94729.0,0.48472819]
[1746552489616,0.3838919,94730.0,94729.0,0.48472819]
[1746552489813,0.172755,94730.0,94729.0,0.48472819]
[1746552490020,0.3838919,94730.0,94729.0,0.48472819]
[1746552490217,0.3838919,94730.0,94729.0,0.45462819]
[1746552490416,0.172755,94730.0,94729.0,0.45462819]
[1746552490914,0.3838919,94730.0,94729.0,0.45462819]
[1746552491114,0.3838919,94730.0,94729.0,0.2131391]
[1746552492017,0.3838919,94730.0,94729.0,0.002]
[1746552492416,0.3838919,94730.0,94729.0,0.2131391]
[1746552492810,0.3838919,94730.0,94729.0,0.002]
[1746552493016,0.3838919,94730.0,94729.0,0.2131391]
[1746552493413,0.3838919,94730.0,94729.0,0.002]
[1746552494213,0.2091391,94729.0,94728.0,0.2111412]
[1746552494413,0.2111436,94727.0,94726.0,0.2639303]
[1746552494609,0.3298895,94727.0,94726.0,0.15751104]
[1746552494822,0.0527905,94719.0,94712.0,0.00158374]
[1746552495121,0.2111748,94713.0,94712.0,0.00158374]
[1746552495322,0.2771348,94713.0,94712.0,0.00158374]
[1746552495720,0.2771348,94713.0,94712.0,0.21276074]
[1746552495913,0.3379348,94713.0,94712.0,0.21276074]
[1746552496115,0.30476,94713.0,94712.0,0.40199362]
[1746552496515,0.2084,94713.0,94712.0,0.40199362]
[1746552496810,0.2084,94713.0,94712.0,0.43199362]
[1746552497022,0.2084,94713.0,94712.0,0.40199362]
[1746552497615,0.4195748,94713.0,94712.0,0.40199362]
[1746552497919,0.2415,94713.0,94712.0,0.40199362]
[1746552500315,0.2415,94713.0,94712.0,0.43499362]
[1746552501032,0.4205748,94713.0,94712.0,0.43499362]
[1746552501221,0.2094,94713.0,94712.0,0.40199362]
[1746552501928,0.2419,94713.0,94712.0,0.40199362]
[1746552502129,0.4530748,94713.0,94712.0,0.40199362]
[1746552503119,0.4530748,94713.0,94712.0,0.37199362]
[1746552503323,0.4530748,94713.0,94712.0,0.16081662]
[1746552503524,0.4530748,94713.0,94712.0,0.37199362]
[1746552504131,0.2419,94713.0,94712.0,0.37199362]
[1746552504327,0.2419,94713.0,94712.0,0.41519362]
[1746552505019,0.2094,94713.0,94712.0,0.41519362]
[1746552505224,0.179,94713.0,94712.0,0.41519362]
[1746552509331,0.179,94713.0,94712.0,0.40519362]
[1746552509829,0.211,94713.0,94712.0,0.40519362]
[1746552511132,0.179,94713.0,94712.0,0.40519362]
[1746552511634,0.179,94713.0,94712.0,0.43519362]
[1746552516737,0.179,94713.0,94712.0,1.93519362]
[1746552518635,0.178,94713.0,94712.0,1.93919362]
[1746552519141,0.178,94713.0,94712.0,1.97139362]
[1746552520139,0.178,94713.0,94712.0,2.12139362]
[1746552520335,0.178,94713.0,94712.0,2.22697761]
[1746552520539,0.178,94713.0,94712.0,2.58697761]
[1746552520540,0.101619,94713.0,94712.0,2.58697761]
[1746552520744,0.0647241,94713.0,94712.0,2.58697761]
[1746552521242,0.307124,94736.0,94735.0,0.2111257]
[1746552521243,0.0315,94736.0,94735.0,0.2111257]
[1746552521445,0.3085835,94736.0,94735.0,0.2111257]
[1746552522155,0.3085835,94736.0,94735.0,0.2438257]
[1746552522156,0.4865835,94736.0,94735.0,0.2438257]
[1746552522645,0.4875835,94736.0,94735.0,0.2438257]
[1746552524533,0.4216235,94736.0,94735.0,0.2438257]
[1746552524738,0.4875835,94736.0,94735.0,0.2438257]
[1746552526646,0.4875835,94736.0,94735.0,0.2111257]
[1746552529144,0.211128,94734.0,94733.0,0.2964105]
[1746552529753,0.241928,94734.0,94733.0,0.2964105]
[1746552530252,0.419928,94734.0,94733.0,0.2964105]
[1746552530754,0.419928,94734.0,94733.0,0.6572105]
[1746552531553,0.420928,94734.0,94733.0,0.6572105]
[1746552532842,0.486848,94734.0,94733.0,0.6572105]
[1746552534250,0.517148,94734.0,94733.0,0.6572105]
[1746552535354,0.2401,94734.0,94733.0,0.6572105]
[1746552535556,0.179,94734.0,94733.0,0.6572105]
[1746552536249,0.179,94734.0,94733.0,0.6672105]
[1746552536448,0.2121,94734.0,94733.0,0.6672105]
[1746552536945,0.179,94734.0,94733.0,0.82604833]
[1746552546662,0.178,94734.0,94733.0,0.82604833]
[1746552548155,0.178,94734.0,94733.0,0.92604833]
[1746552548765,0.178,94734.0,94733.0,1.50334833]
[1746552549163,0.178,94734.0,94733.0,1.34334833]
[1746552550355,0.178,94734.0,94733.0,1.49334833]
[1746552551264,0.178,94734.0,94733.0,1.34334833]
[1746552551966,0.178,94734.0,94733.0,1.50408261]
[1746552553458,0.178,94734.0,94733.0,1.55408261]
[1746552553652,0.178,94734.0,94733.0,1.63408261]
[1746552554358,1e-07,94734.0,94733.0,2.00964261]
[1746552554760,1e-07,94734.0,94733.0,3.50964261]
[1746552555565,1e-07,94734.0,94733.0,3.84890833]
[1746552556964,1e-07,94734.0,94733.0,3.34890833]
[1746552558069,1e-07,94734.0,94733.0,2.87890833]
[1746552558663,1e-07,94734.0,94733.0,2.79922833]
[1746552559270,1e-07,94734.0,94733.0,2.83922833]
[1746552563665,1e-07,94734.0,94733.0,2.42192833]
[1746552564466,1e-07,94734.0,94733.0,2.45422833]
[1746552565462,1e-07,94734.0,94733.0,2.58422833]
[1746552566871,1e-07,94734.0,94733.0,2.74488964]
[1746552567458,1e-07,94734.0,94733.0,2.85488964]
[1746552568673,1e-07,94734.0,94733.0,2.81044964]
[1746552568871,1e-07,94734.0,94733.0,3.15044964]
[1746552569264,1e-07,94734.0,94733.0,2.98978833]
[1746552569666,1e-07,94734.0,94733.0,3.40708833]
[1746552570768,1e-07,94734.0,94733.0,3.47296833]
[1746552572766,1e-07,94734.0,94733.0,3.74147118]
[1746552573375,1e-07,94734.0,94733.0,4.24447118]
[1746552573669,0.001,94746.0,94733.0,4.24447118]
[1746552573876,0.001,94746.0,94745.0,0.5719034]
[1746552574068,0.001,94746.0,94745.0,0.6919034]
[1746552574268,0.179,94746.0,94745.0,0.8506529]
[1746552574470,0.179,94746.0,94745.0,0.9156529]
[1746552575766,0.179,94746.0,94745.0,1.3329529]
[1746552576474,0.179,94746.0,94745.0,1.3007529]
[1746552581173,0.179,94746.0,94745.0,1.2679529]
[1746552581374,0.179,94746.0,94745.0,1.1479529]
[1746552581582,0.179,94746.0,94745.0,0.7965329]
[1746552581775,0.179,94746.0,94745.0,0.7306529]
[1746552581975,0.179,94746.0,94745.0,0.7965329]
[1746552582578,0.3901012,94746.0,94745.0,0.5195495]
[1746552583476,0.4545012,94746.0,94745.0,0.5195495]
[1746552584075,0.4545012,94746.0,94745.0,0.7306529]
[1746552585980,0.4545012,94746.0,94745.0,0.3698529]
[1746552587776,0.2434,94746.0,94745.0,0.3698529]
[1746552589690,0.2739,94746.0,94745.0,0.3698529]
[1746552590185,0.2739,94746.0,94745.0,0.4398529]
[1746552592991,0.2739,94746.0,94745.0,0.3698529]
[1746552595679,0.4850012,94746.0,94745.0,0.3698529]
[1746552595881,0.2739,94746.0,94745.0,0.3698529]
[1746552597193,0.4850012,94746.0,94745.0,0.3698529]
[1746552598095,0.2739,94746.0,94745.0,0.3698529]
[1746552600079,0.2408,94746.0,94745.0,0.3698529]
[1746552600285,0.2103,94746.0,94745.0,0.3698529]
[1746552600786,0.2103,94746.0,94745.0,0.4329529]
[1746552603982,0.4214012,94746.0,94745.0,0.4329529]
[1746552604384,0.2103,94746.0,94745.0,0.4329529]
[1746552605081,0.2103,94746.0,94745.0,0.4629529]
[1746552605884,0.179,94746.0,94745.0,0.4329529]
[1746552606992,0.179,94746.0,94745.0,0.4929529]
[1746552607389,0.1241352,94746.0,94745.0,0.8502529]
[1746552607689,0.0264584,94746.0,94745.0,2.4702529]
[1746552610097,0.72190999,94746.0,94745.0,2.4702529]
[1746552610592,0.72190999,94746.0,94745.0,2.0373]
[1746552610798,0.72190999,94746.0,94745.0,2.18645943]
[1746552610993,0.72190999,94746.0,94745.0,2.34563959]
[1746552611499,0.72190999,94746.0,94745.0,2.41147959]
[1746552612298,0.72190999,94746.0,94745.0,2.40147959]
[1746552613000,0.72190999,94746.0,94745.0,2.41147959]
[1746552613401,0.72190999,94746.0,94745.0,0.97342356]
[1746552613793,0.72190999,94746.0,94745.0,1.03702356]
[1746552614292,0.72190999,94746.0,94745.0,2.53702356]
[1746552615000,0.6419025,94746.0,94745.0,2.53702356]
[1746552616202,0.6419025,94746.0,94745.0,2.00912158]
[1746552616400,0.6419025,94746.0,94745.0,2.38022498]
[1746552616902,0.6419025,94746.0,94745.0,2.52887408]
[1746552617401,0.41904003,94746.0,94745.0,2.52887408]
[1746552620100,0.41904003,94746.0,94745.0,2.53887408]
[1746552620402,0.20634523,94746.0,94745.0,2.53987408]
[1746552622706,0.0264584,94746.0,94745.0,2.53987408]
[1746552629317,0.0611,94760.0,94759.0,0.2110722]
[1746552629506,0.0611,94760.0,94759.0,0.5718722]
[1746552629507,0.0711,94760.0,94759.0,0.5718722]
[1746552629706,0.0711,94760.0,94759.0,0.73014866]
[1746552630118,0.2491,94760.0,94759.0,0.73014866]
[1746552630321,0.46017,94760.0,94759.0,0.53389871]
[1746552630514,0.2511,94760.0,94759.0,0.74497091]
[1746552631210,0.2101,94760.0,94759.0,1.05081091]
[1746552631414,0.1201664,94800.0,94759.0,1.19314924]
[1746552631613,0.0625,94790.0,94789.0,0.2110054]
[1746552631813,0.1225,94790.0,94789.0,0.2110054]
[1746552632316,0.2405,94790.0,94789.0,0.2110054]
[1746552633221,0.178,94790.0,94789.0,0.77546538]
[1746552633517,0.178,94790.0,94789.0,0.98546538]
[1746552633717,0.181,94790.0,94789.0,2.51596538]
[1746552634939,0.181,94790.0,94789.0,2.50946538]
[1746552635224,0.1201664,94800.0,94789.0,2.30495998]
[1746552635436,0.1201664,94800.0,94799.0,0.5717832]
[1746552635729,0.1201664,94800.0,94799.0,0.6475832]
[1746552635915,0.1201664,94800.0,94799.0,0.8048766]
[1746552636115,0.2981664,94800.0,94799.0,0.8048766]
[1746552636320,0.2981664,94800.0,94799.0,0.9861766]
[1746552636924,0.3031664,94800.0,94799.0,0.7948766]
[1746552637432,0.2981664,94800.0,94799.0,0.7948766]
[1746552637630,0.2991664,94800.0,94799.0,0.7948766]
[1746552638329,0.2991664,94800.0,94799.0,0.5838934]
[1746552638527,0.3791664,94800.0,94799.0,1.7230934]
[1746552638720,0.7346504,94800.0,94789.0,0.58754416]
[1746552638921,0.0648,94799.0,94791.0,0.0527502]
[1746552639230,0.1748,94799.0,94796.0,0.2109878]
[1746552639428,0.2109857,94798.0,94796.0,0.2109878]
[1746552639622,0.4264737,94798.0,94797.0,0.2109876]
[1746552639822,0.3530857,94798.0,94797.0,0.2109876]
[1746552640024,0.1421,94798.0,94797.0,0.2109876]
[1746552640224,0.3201,94798.0,94797.0,0.2109876]
[1746552641425,0.3201,94798.0,94797.0,0.5717876]
[1746552641628,0.2101,94798.0,94797.0,0.5717876]
[1746552642130,0.2101,94798.0,94797.0,0.74946884]
[1746552645626,0.178,94798.0,94797.0,0.89946884]
[1746552645833,0.178,94798.0,94797.0,0.93046884]
[1746552646135,0.178,94798.0,94797.0,2.43046884]
[1746552646334,0.178,94798.0,94797.0,2.28046884]
[1746552647634,0.178,94798.0,94797.0,2.42046884]
[1746552654132,0.178,94798.0,94797.0,2.42346884]
[1746552654739,0.178,94798.0,94797.0,2.42446884]
[1746552655039,0.1201664,94800.0,94799.0,0.2109832]
[1746552655235,0.1201664,94800.0,94799.0,0.3767832]
[1746552655437,0.1201664,94800.0,94799.0,0.5346512]
[1746552655634,0.1201664,94800.0,94799.0,0.5979512]
[1746552655938,0.1201664,94800.0,94799.0,2.0979512]
[1746552656139,0.2981664,94800.0,94799.0,2.0979512]
[1746552657241,0.2981664,94800.0,94799.0,2.1009512]
[1746552657445,0.2981664,94800.0,94799.0,2.0009512]
[1746552658641,0.2981664,94800.0,94799.0,2.0409512]
[1746552658844,0.2981664,94800.0,94799.0,2.0009512]
[1746552659635,0.2981664,94800.0,94799.0,1.8718512]
[1746552659835,0.2981664,94800.0,94799.0,0.160868]
[1746552659836,0.6446314,94800.0,94799.0,0.160868]
[1746552660043,0.6836504,94800.0,94799.0,0.3718512]
[1746552660342,0.4336504,94800.0,94799.0,0.3718512]
[1746552660838,0.4650504,94800.0,94799.0,0.3718512]
[1746552661238,0.3295664,94800.0,94799.0,0.3718512]
[1746552661440,0.3295664,94800.0,94799.0,0.3688512]
[1746552667938,0.3395664,94800.0,94799.0,0.3688512]
[1746552668753,0.3395664,94800.0,94799.0,0.157868]
[1746552668951,0.4450504,94800.0,94798.0,0.21337024]
[1746552669248,0.136088,94799.0,94798.0,0.42435564]
[1746552669452,0.4570712,94799.0,94798.0,0.42435564]
[1746552669653,0.4881712,94799.0,94798.0,0.42435564]
[1746552669847,0.277188,94799.0,94798.0,0.42435564]
[1746552670246,0.455188,94799.0,94798.0,0.42435564]
[1746552670557,0.2397,94799.0,94798.0,0.49435564]
[1746552670854,0.2397,94799.0,94798.0,0.52585564]
[1746552671243,0.2397,94799.0,94798.0,0.3124854]
[1746552672540,0.2397,94799.0,94798.0,0.47036948]
[1746552672745,0.2397,94799.0,94798.0,0.60036948]
[1746552672746,0.178,94799.0,94798.0,0.60036948]
[1746552672946,0.178,94799.0,94798.0,0.63326948]
[1746552673347,0.178,94799.0,94798.0,2.13326948]
[1746552673549,0.178,94799.0,94798.0,2.16343894]
[1746552675750,0.178,94799.0,94798.0,2.16643894]
[1746552676252,0.2101,94799.0,94798.0,2.16643894]
[1746552676657,0.2101,94799.0,94798.0,2.21963972]
[1746552676952,0.2101,94799.0,94798.0,2.14963972]
[1746552677162,0.2101,94799.0,94798.0,2.17963972]
[1746552678853,0.2101,94799.0,94798.0,2.14963972]
[1746552679558,0.001,94836.0,94834.0,0.2109053]
[1746552679863,0.1447,94835.0,94834.0,0.2109053]
[1746552680064,0.0347,94835.0,94834.0,0.36868568]
[1746552680257,0.2127,94835.0,94834.0,0.36868568]
[1746552680456,0.2127,94835.0,94834.0,0.40038568]
[1746552680656,0.1795,94835.0,94834.0,0.41384835]
[1746552680861,0.1835,94835.0,94834.0,0.44594835]
[1746552681462,0.1825,94835.0,94834.0,1.94594835]
[1746552683158,0.1825,94835.0,94834.0,2.32377744]
[1746552683362,0.1825,94835.0,94834.0,2.15377744]
[1746552683562,0.1825,94835.0,94834.0,2.01377744]
[1746552684061,0.1825,94835.0,94834.0,1.96377744]
[1746552684854,0.1825,94835.0,94834.0,1.95377744]
[1746552689865,0.2443,94835.0,94834.0,1.95377744]
[1746552690167,0.2122,94835.0,94834.0,1.95377744]
[1746552691465,0.1815,94835.0,94834.0,1.95377744]
[1746552693268,0.1815,94835.0,94834.0,1.99377744]
[1746552693669,0.1815,94835.0,94834.0,2.06001744]
[1746552694759,0.2145,94835.0,94834.0,2.06001744]
[1746552695369,0.2145,94835.0,94834.0,2.02001744]
[1746552696075,0.1815,94835.0,94834.0,2.02001744]
[1746552696276,0.1815,94835.0,94834.0,2.05001744]
[1746552696974,0.1815,94835.0,94834.0,2.02001744]
[1746552697175,0.2015,94835.0,94834.0,1.92207744]
[1746552697477,0.297,94835.0,94834.0,1.73184947]
[1746552697773,0.297,94835.0,94834.0,0.44275477]
[1746552698170,0.295,94835.0,94834.0,0.44475477]
[1746552698482,0.40044801,94835.0,94834.0,0.16760947]
[1746552698677,0.40044801,94835.0,94834.0,0.16560947]
[1746552698873,0.40044801,94835.0,94834.0,0.15878038]
[1746552699271,0.61135111,94835.0,94834.0,0.15878038]
[1746552699475,0.61135111,94835.0,94834.0,0.36968568]
[1746552701280,0.61135111,94835.0,94834.0,0.36868568]
[1746552702079,0.61135111,94835.0,94834.0,0.15778038]
[1746552702276,0.2109053,94834.0,94833.0,0.0078018]
[1746552702583,0.2109145,94830.0,94829.0,0.2109164]
[1746552702780,0.3109145,94830.0,94829.0,0.2109164]
[1746552702982,0.3109145,94830.0,94829.0,0.36961315]
[1746552702983,0.1,94830.0,94829.0,0.36961315]
[1746552703277,0.278,94830.0,94829.0,0.36961315]
[1746552704384,0.24428,94830.0,94829.0,0.37736591]
[1746552704881,0.178,94830.0,94829.0,0.44076591]
[1746552705475,0.178,94830.0,94829.0,0.47076591]
[1746552707084,0.178,94830.0,94829.0,1.97076591]
[1746552708686,0.178,94830.0,94829.0,1.98076591]
[1746552709885,0.178,94830.0,94829.0,1.95076591]
[1746552710190,0.178,94830.0,94829.0,1.94076591]
[1746552711483,0.188,94830.0,94829.0,1.94076591]
[1746552712088,0.178,94830.0,94829.0,1.94076591]
[1746552712487,0.198,94830.0,94829.0,1.94076591]
[1746552713192,0.198,94830.0,94829.0,1.94376591]
[1746552713383,0.198,94830.0,94829.0,0.44376591]
[1746552713687,0.198,94830.0,94829.0,0.41056591]
[1746552713891,0.198,94830.0,94829.0,0.38036591]
[1746552714191,0.198,94830.0,94829.0,0.44660591]
[1746552714782,0.198,94830.0,94829.0,0.38036591]
[1746552714983,0.198,94830.0,94829.0,0.44660591]
[1746552715183,0.198,94830.0,94829.0,0.47980591]
[1746552715496,0.198,94830.0,94829.0,0.47680591]
[1746552715687,0.2621,94830.0,94829.0,0.47880591]
[1746552716206,0.2621,94830.0,94829.0,0.47780591]
[1746552720094,0.26230727,94830.0,94829.0,0.47780591]
[1746552721796,0.26230727,94830.0,94829.0,0.44468591]
[1746552722192,0.26230727,94830.0,94829.0,0.37836591]
[1746552722397,0.26230727,94830.0,94829.0,0.44468591]
[1746552723091,0.26230727,94830.0,94829.0,0.40926591]
[1746552723292,0.23070727,94830.0,94829.0,0.47558591]
[1746552723600,0.21070727,94830.0,94829.0,0.54538591]
[1746552723798,0.21070727,94830.0,94829.0,0.54638591]
[1746552724001,0.17820727,94830.0,94829.0,0.54638591]
[1746552724598,0.0015,94835.0,94834.0,0.2109053]
[1746552724793,0.0015,94835.0,94834.0,0.5717053]
[1746552724993,0.0015,94835.0,94834.0,0.72929785]
[1746552725194,0.1795,94835.0,94834.0,2.29229785]
[1746552727296,0.1795,94835.0,94834.0,2.45228624]
[1746552730102,0.1795,94835.0,94834.0,2.29229785]
[1746552731095,0.2097,94835.0,94834.0,2.29229785]
[1746552732597,0.2097,94835.0,94834.0,2.35861785]
[1746552733003,0.2097,94835.0,94834.0,2.29229785]
[1746552733205,0.2097,94835.0,94834.0,2.35861785]
[1746552734004,0.2097,94835.0,94834.0,2.29229785]
[1746552734203,0.2097,94835.0,94834.0,2.35861785]
[1746552734697,0.3197,94835.0,94834.0,0.58471255]
[1746552735003,0.5950031,94835.0,94834.0,0.58471255]
[1746552735202,0.5950031,94835.0,94834.0,0.79561785]
[1746552735397,0.5950031,94835.0,94834.0,0.72929785]
[1746552735597,0.5950031,94835.0,94834.0,0.15959255]
[1746552735799,1.31125111,94835.0,94834.0,0.002]
[1746552736010,0.2109142,94830.0,94829.0,0.22107062]
[1746552736305,0.3872742,94830.0,94829.0,0.21866916]
[1746552736502,0.4927262,94830.0,94829.0,0.21866916]
[1746552736895,0.20746,94830.0,94829.0,0.21866916]
[1746552737097,0.27546,94830.0,94829.0,0.47378948]
[1746552738304,0.27546,94830.0,94829.0,0.47478948]
[1746552738508,0.2091,94830.0,94829.0,0.47478948]
[1746552739803,0.4200142,94830.0,94829.0,0.47478948]
[1746552740101,0.2091,94830.0,94829.0,0.47478948]
[1746552740308,0.4700142,94830.0,94829.0,0.47478948]
[1746552740493,0.5021142,94830.0,94829.0,0.47478948]
[1746552742198,0.5021142,94830.0,94829.0,0.47378948]
[1746552744311,0.4521142,94830.0,94829.0,0.47378948]
[1746552744615,0.2412,94830.0,94829.0,0.47378948]
[1746552745110,0.2091,94830.0,94829.0,0.50598948]
[1746552748811,0.4200142,94830.0,94829.0,0.50598948]
[1746552749010,0.5306142,94830.0,94829.0,0.47378948]
[1746552751114,0.3197,94830.0,94829.0,0.47378948]
[1746552751313,0.2397,94830.0,94829.0,0.47378948]
[1746552752716,0.5106142,94830.0,94829.0,0.19655308]
[1746552753016,0.5106142,94830.0,94829.0,0.47386948]
[1746552753314,0.2997,94830.0,94829.0,0.47386948]
[1746552753712,0.2397,94830.0,94829.0,0.47386948]
[1746552754114,0.2397,94830.0,94829.0,0.40746948]
[1746552754310,0.2397,94830.0,94829.0,0.47386948]
[1746552757118,0.2397,94830.0,94829.0,0.40746948]
[1746552757317,0.2397,94830.0,94829.0,0.76826948]
[1746552758318,0.2397,94830.0,94829.0,0.83466948]
[1746552759213,0.2452046,94835.0,94829.0,0.83466948]
[1746552759214,0.0015,94835.0,94834.0,0.2109053]
[1746552759419,0.0015,94835.0,94834.0,0.8417053]
[1746552759612,0.0015,94835.0,94834.0,1.06128814]
[1746552759812,0.0015,94835.0,94834.0,2.56128814]
[1746552760325,0.1795,94835.0,94834.0,2.56128814]
[1746552761920,0.1805,94835.0,94834.0,2.56128814]
[1746552762513,0.1795,94835.0,94834.0,2.56228814]
[1746552762819,0.17552394,94835.0,94834.0,2.56228814]
[1746552763713,0.17552394,94835.0,94834.0,2.62868814]
[1746552765525,0.07281474,94835.0,94834.0,2.63868814]
[1746552766120,0.0527011,94880.0,94834.0,2.78963084]
[1746552766320,0.0527011,94880.0,94859.0,0.2108497]
[1746552766321,0.0308,94860.0,94859.0,0.2108497]
[1746552766518,0.064,94865.0,94864.0,0.2108386]
[1746552766821,0.174,94865.0,94864.0,0.36955976]
[1746552767218,0.352,94865.0,94864.0,0.36955976]
[1746552767814,0.3828,94865.0,94864.0,0.36955976]
[1746552768816,0.3868,94865.0,94864.0,0.36955976]
[1746552770627,0.5976364,94865.0,94864.0,0.36955976]
[1746552771022,0.5976364,94865.0,94864.0,0.43595976]
[1746552771228,0.9530484,94865.0,94864.0,0.15872116]
[1746552771525,0.9530484,94865.0,94864.0,0.2108386]
[1746552771721,0.7030484,94865.0,94864.0,0.2108386]
[1746552772026,0.7030484,94865.0,94864.0,0.36956922]
[1746552777024,0.7030484,94865.0,94864.0,0.15873062]
[1746552777329,0.7030484,94865.0,94864.0,0.36956922]
[1746552778035,0.7030484,94865.0,94864.0,0.15873062]
[1746552778926,0.7030484,94865.0,94864.0,0.36956922]
[1746552779531,0.7030484,94865.0,94864.0,0.15873062]
[1746552780035,0.492212,94865.0,94863.0,0.0664]
[1746552780228,0.3162546,94864.0,94863.0,0.0664]
[1746552780426,0.4262546,94864.0,94863.0,0.2772408]
[1746552780627,0.4905546,94864.0,94863.0,0.2772408]
[1746552781127,0.6685546,94864.0,94863.0,0.2772408]
[1746552781332,0.6685546,94864.0,94863.0,0.0664]
[1746552781919,0.2108675,94851.0,94850.0,0.3608]
[1746552782125,0.2636005,94847.0,94846.0,0.2635959]
[1746552782425,0.11,94847.0,94846.0,0.42152866]
[1746552782815,0.178,94851.0,94846.0,0.42152866]
[1746552782816,0.178,94851.0,94847.0,0.0527185]
[1746552783023,0.178,94851.0,94850.0,0.5716697]
[1746552783421,0.178,94851.0,94850.0,0.72954984]
[1746552783825,0.178,94851.0,94850.0,0.76094984]
[1746552784622,0.228,94851.0,94850.0,0.76094984]
[1746552784926,0.208,94851.0,94850.0,0.76094984]
[1746552785125,0.209,94851.0,94850.0,0.76094984]
[1746552786532,0.209,94851.0,94850.0,0.82738984]
[1746552789231,0.4198675,94851.0,94850.0,0.40014984]
[1746552789439,0.2108875,94842.0,94839.0,0.06644]
[1746552789625,0.3208875,94842.0,94841.0,0.5716898]
[1746552790233,0.4988875,94842.0,94841.0,0.5716898]
[1746552791932,0.4988875,94842.0,94841.0,0.5726898]
[1746552792326,0.4988875,94842.0,94841.0,0.001]
[1746552793337,0.4988875,94842.0,94841.0,0.2118898]
[1746552793632,0.4988875,94842.0,94841.0,0.2108898]
[1746552794339,0.288,94842.0,94841.0,0.2437898]